Workbook

Sheet Uvod
A1: Výpočetní pomůcka pro výpočet
A2: Požární odolnosti dřevěného prvku
A3: s obdélníkovým průřezem
A4: dle ČSN EN 1995-1
A6: Podporované konstrukce:
A7: • | B7: horizontální jednopolový nosník spojitě zatížený (posuzuje se pouze ohyb, smyk není posuzován),
A8: • | B8: horizontální dvoupolový nosník spojitě zatížený (posuzuje se pouze ohyb, smyk není posuzován),
A9: • | B9: vertikální sloup bodově excentricky zatížený (posuzuje se kombinace M+N a stabilita).
A11: Instrukce: | G11: =IF(F12="","","Gratuluji, úspěšně jste vyplnili vzorovou ") -> 
A12: Vyplňujte pouze žlutě vyznačené buňky | G12: =IF(F12="","","buňku :) Přeji hodně štěstí při výpočtu :)") -> 
A13: Pro fungování musíte mít zapnuty a povoleny makra.
A14: Pro ideální fungování používejte nejnovější verzi MS Excel (ověřeno pro MS Excel 2010, 2013, 2016, 2019)
A15: a Windows (ověřeno pro Windows 7, 8 a 10).
A17: Doporučení:
A18: Při výběru materiálu konstrukce zkontrolujte, zda skutečné vlastnosti (zejména hustota) Vámi navrženého materiálu odpovídají tabulkovým hodnotám (zejména u lepeného dřeva).
A20: Pro každý nový výpočet doporučuji znovu zapnout pomůcku (zejména pakliže jste při předchozím výpočtu zadávali vlastní materiálové charakteristiky).
A23: Autor: | C23: Jakub Holan
A24: Kontakt: | C24: jakub.holan@fsv.cvut.cz
A25: Verze 1.5 | C25: (27.09.2020)
A26: Tato práce byla podpořena grantem Studentské grantové soutěže ČVUT č. SGS20/041/OHK1/1T/11.

Sheet vyberKce (hidden)
A1: Výběr konstrukce

Sheet Vstupy (hidden)
A1: Zadání vstupních hodnot
A3: Materiál:
A4: 2) Lepené lamelové dřevo | F4: Jehličnaté | H4: GL 32c
F5: Jiné
A7: Charakteristická hodnota pevnosti v ohybu | F7: Modul pružnosti
A8: fm,k = | B8: =Dat!B76 -> 32 | C8: MPa | F8: E0.05 = | G8: =Dat!E76 -> 11100 | H8: MPa
A10: Charakteristická hustota | F10: Charakteristická hodnota pevnosti v tlaku
A11: ρk = | B11: =Dat!C76 -> 410 | C11: kg/m3 | F11: fc,0,k = | G11: =Dat!D76 -> 26.5 | H11: MPa
A13: Modifikační součinitel pevnosti pro třídy provozu a třídy trvání zatížení:
A14: Třída provozu | C14: 2
A15: Třída trvání zatížení: | C15: 3) Střednědobé
A16: kmod = | C16: =HLOOKUP(C15,Dat!B19:F22,(C14+1)) -> 0.8 | D16: (1995-1-1 | E16: _3.1.3)
F17: =Dat!D13 -> Délka levého pole:
F18: =IF(typKce=2,"L1 =","") -> L1 = | G18: 4 | H18: =IF(typKce=2,"m","") -> m
A19: Šířka a výška průřezu
A20: b | B20: 180 | C20: mm | F20: =Dat!C13 -> Délka pravého pole:
A21: h | B21: 300 | C21: mm | F21: =IF(typKce=2,"L2 =",IF(typKce=3,"H =","L")) -> L2 = | G21: 6 | H21: m
A23: Kombinační součinitel pro hlavní proměnné zatížení při požární situaci
A24: Volba součinitele: | C24: ψ2,1
A25: Volbu součinitele proveďte v souladu s normou - viz: ČSN EN 1991-1-2_NA.2.10: "...v ČR se použije kvazistálá hodnota ψ2,1 Q1. Podle charakteru konstrukce budovy a jejího umístění se doporučuje, zejména u halových objektů, pro zatížení sněhem a větrem uplatnit použití časté hodnoty ψ1,1 Q1"
A30: Hrany vystavené požáru | F30: Ochrana povrchu
A31: 1 x šířka | C31: b | F31: Chráněný
A32: 2 x výška | F32: Desky na bázi dřeva nebo dřevěné obložení
F33: ρk = | G33: 400 | H33: kg/m3 (charakt. hustota)
B34: h | D34: h
C37: b
A39: =Dat!K13 -> Zajištění proti vybočení a zabránění torznímu natočení
A40: =Dat!L13 -> Tlačený okraj nosníku je po celé délce zajištěn proti vybočení a je zabráněno torznímu
A41: =Dat!M13 -> natočení v podpěrách: | D41: ANO
A42: =IF(typKce=3,IF(D41=Dat!Q5,"Zadejte vzpěrnou délku:",""),"") ->  | D42: 3 | E42: =IF(typKce=3,IF(D41=Dat!Q5,"m",""),"") -> 
R74: =0.78*(R51/1000)^2*Vstupy!G8/(0.001*Vstupy!B54*R52) -> 

Sheet Ochrana (hidden)
A1: Specifikace ochrany průřezu
A3: Počátek zuhelnatění:
A4: 1) Deska/y na bázi dřeva / dř. obložení | E4: =Dat!M31 -> 
A5: =Dat!J31 -> celková tl. vrstev: | C5: 20 | D5: =IF(Dat!I31=Dat!I37,"min","mm") -> mm | E5: =Dat!K31 -> 0 | G5: 10 | H5: mm
A6: tch = | B6: =Dat!L31 -> 20.95131204 | C6: min
A8: Čas porušení protipožárního obvodového pláště:
A9: 1) Deska/y na bázi dřeva nebo dř. obložení
A10: tf = | B10: =IF(Dat!I41=Dat!I42,Dat!L31,IF(Dat!I41=Dat!I43,Dat!L31,"")) -> 20.95131204 | C10: min | D10: tf = | E10: 100 | F10: min
A11: tf = | B11: =IF(Dat!I41=Dat!I42,Dat!L31,IF(Dat!I41=Dat!I43,Dat!L31,E10)) -> 20.95131204 | C11: min
A13: Rychlost zuhelnatění po počátku zuhelnatění před porušením protipožárního pláště
A14: 1) Jediná vrstva desky SDK F
A15: =Dat!J47 -> tloušťka vrstvy: | C15: 22 | D15: =IF(Dat!I52=Dat!I51,"","mm") -> mm
A16: k2 = | B16: =Dat!K52 -> 0.604

Sheet N_Zat (hidden)
A1: =CONCATENATE(Dat!G13," nosník - Zadání zatížení") -> Dvoupolový nosník - Zadání zatížení
A3: Kategorie stavby:
A4: E - skladovací plochy | D4: ψ0 = | E4: =VLOOKUP(A4,ZatData!A1:D8,2) -> 1 | F4: ψ1 = | G4: =VLOOKUP(A4,ZatData!A1:D8,3) -> 0.9 | H4: ψ2 = | I4: =VLOOKUP(A4,ZatData!A1:D8,4) -> 0.8
A6: Základní kombinace zatížení pro návrhové situace (MSÚ - STR/GEO)
B7: 6.10 | C7: =IF(OR(Dat!F4=Dat!F2,Dat!F4=Dat!F3),"(Vyberte méně příznivou variantu z 6.10a a 6.10b)","") -> 
A9: Velikost zatížení
B10: Stálé zatížení | G10: gk [kN/m] | H10: γG [-] | I10: ξ | J10: gd [kN/m]
B11: Vlastní tíha g0 | G11: =10*(Vstupy!B11*(Vstupy!B20*Vstupy!B21*10^(-6)))/1000 -> 0.2214 | H11: =1.35 -> 1.35 | I11: =Dat!G4 -> 1 | J11: =G11*H11*I11 -> 0.29889
B12: Ostatní stálé g-g0 | G12: 5 | H12: =1.35 -> 1.35 | I12: =I11 -> 1 | J12: =G12*H12*I12 -> 6.75
G13: =SUM(G11:G12) -> 5.2214 | J13: =SUM(J11:J12) -> 7.04889
B15: Proměnné zatížení | G15: qk [kN/m] | H15: γQ | I15: ψ | J15: qd [kN/m]
A16: Q1 | B16: Užitné | G16: 2 | H16: 1.5 | I16: =IF(AND(OR($B$7=Dat!$F$3,$B$7=Dat!$F$1),$E$25=A16),1,$E$4) -> 1 | J16: =G16*H16*I16 -> 3
A17: Q2 | B17: Sníh | C17: H < 1000 m n.m. | G17: 0 | H17: 1.5 | I17: =IF(AND(OR($B$7=Dat!$F$3,$B$7=Dat!$F$1),$E$25=A17),1,Dat!I4) -> 0.5 | J17: =H17*G17*I17 -> 0
A18: Q3 | B18: Vítr | G18: 0 | H18: 1.5 | I18: =IF(AND(OR($B$7=Dat!$F$3,$B$7=Dat!$F$1),$E$25=A18),1,0.6) -> 0.6 | J18: =H18*G18*I18 -> 0
A19: Q4 | B19: Proměnné 4 | G19: 0 | H19: 1.5 | I19: =IF(AND(OR($B$7=Dat!$F$3,$B$7=Dat!$F$1),$E$25=A19),1,$E$4) -> 1 | J19: =H19*G19*I19 -> 0
G21: =SUM(G16:G20) -> 2 | J21: =SUM(J16:J20) -> 3
A23: Celkem | J23: =J21+J13 -> 10.04889
A25: Hlavní proměnné zatížení: | E25: Q1 | F25: =VLOOKUP(E25,A16:G19,7) -> 2 | G25: kN/m'

Sheet N_Vyp (hidden)
A1: =CONCATENATE("Výpočet požární odolnosti ",Dat!H13," nosníku") -> Výpočet požární odolnosti dvoupolového nosníku
A3: Ověření únosnosti při pokojové teplotě
A5: Liniové zatížení na nosníku | E5: =Dat!F13 -> Moment nad střední podporou
A6: f = | B6: =N_Zat!J23 -> 10.04889 | C6: kN/m' | E6: MEd = | F6: =Dat!E13 -> 35.171115 | G6: kNm
A8: Průřezový modul průřezu
A9: W | B9: =10^(-9)*(1/6)*Vstupy!B20*Vstupy!B21^2 -> 0.0027 | C9: m3
A11: Dílčí součinitel pro vlastnosti materiálu v základní kombinaci
A12: γM = | B12: =VLOOKUP(Vstupy!A4,Dat!A3:B4,2) -> 1.25 | C12: (1995-1-1_2.4.1)
A14: Návrhová hodnota pevnosti
A15: fm,d = | B15: =Vstupy!C16*Vstupy!B8/B12 -> 20.48 | C15: MPa | D15: (1995-1-1_2.4.1 (1))
A17: Součinitel redukce pevnosti v ohybu v důsledku příčné a torzní nestability
A18: kcrit = | B18: =IF(Vstupy!D41=Dat!Q5,1,IF(Vstupy!D41=Dat!Q6,Dat!R47,"Chyba")) -> 1 | C18: (1995-1-1_6.3.3 (5))
A20: Ověření zda navržený průřez vyhoví na ohyb
A21: σm,d < kcrit * fm,d | F21: (1995-1-1_6.3.3 (3))
A22: =0.001*F6/B9 -> 13.02633889 | B22: MPa | C22: =IF(A22<D22,"<",">") -> < | D22: =B18*B15 -> 20.48 | E22: MPa
C23: =IF(C22="<","Vyhovuje","NEVYHOVUJE") -> Vyhovuje
A25: Účinek požáru - Výpočet velikosti ohybového momentu
A27: Charakteristická hodnota stálého zatížení
A28: Gk = | B28: =N_Zat!G13 -> 5.2214 | C28: kN/m'
A30: Dílčí součinitel pro stálá zatížení
A31: γG = | B31: =N_Zat!H11 -> 1.35 | D31: (1990_A1.3.1 (3))
A33: Dílčí součinitele zatížení pro mezní stavy únosnosti v mimořádných návrhových situacích
A34: γGA = | B34: 1 | D34: (1990_A1.3.2 (1))
A36: Charakteristická hodnota hlavního proměnného zatížení
A37: Qk,1 = | B37: =N_Zat!F25 -> 2 | C37: kN/m'
A39: Dílčí součinitel pro hlavní proměnné zatížení
A40: γQ,1 = | B40: =N_Zat!H16 -> 1.5 | D40: (1990_A1.3.1 (3))
A42: Redukční součinitel pro kombinaci zatížení (6.10) v ČSN EN 1990
A43: ηfi = | B43: =(B34*B28+Dat!N2*B37)/(B31*B28+B40*B37) -> 0.6788212429 | D43: (1995-1-2_2.4.2 (3))
A44: (Jako zjednodušení je doporučena hodnota 0.7 pro užitné kategorie E a 0.6 pro ostatní)
A46: Účinek zatížení (moment v polovině rozpětí)
A47: Md,fi = | B47: =B43*F6 -> 23.8749 | C47: kNm | D47: (1995-1-2_2.4.2 (2))
A49: Účinek požáru - Posouzení - obecné informace
A51: Trvání požáru
A52: t = | B52: 64.48091547 | C52: min
A54: Počátek zuhelnatění
A55: tch = | B55: =Dat!J71 -> 20.95131204 | C55: min
A57: Převodní součinitel na 20% kvantil
A58: kfi | B58: =VLOOKUP(Vstupy!A4,Dat!A3:C4,3) -> 1.15 | C58: (1995-1-2_2.3 (3))
A60: 20% kvantil pevnosti
A61: fm,20 = | B61: =B58*Vstupy!B8 -> 36.8 | C61: MPa | D61: (1995-1-2_2.3 (3))
A63: Dílčí součinitel spolehlivosti dřeva při požáru
A64: γm,fi = | B64: =1 -> 1 | D64: (1995-1-2_2.3 (1-P2))
A66: Nominální návrhová rychlost zuhelnatění při vystavení účinkům normového požáru
A67: βn | B67: =Dat!N60 -> 0.7 | C67: mm/min | D67: (1995-1-2_3.4.2 (5))
A69: Nominální návrhová hloubka zuhelnatění
A70: dchar,n | B70: =Dat!I83 -> 42.97072241 | C70: mm | D70: (1995-1-2_3.4.2/3.4.3)
A72: Účinek požáru - Posouzení - Metoda účinného průřezu
A74: Součinitele pro redukci průřezu
A75: d0 = | B75: 7 | C75: mm | D75: (1995-1-2_4.2.2 (1))
A77: k0 = | B77: =IF(dotazOchr=ochr1,(IF(B55<20,(IF(B52>20,1,(B52/20))),(IF(B55<B52,1,(B52/B55))))),IF(dotazOchr=ochr0,(IF(B52>20,1,(B52/20))),"Chyba")) -> 1 | D77: (1995-1-2_4.2.2 (2,3))
A79: Účinná hloubka zuhelnatění
A80: def = | B80: =B70+B77*B75 -> 49.97072241 | C80: mm | D80: (1995-1-2_4.2.2 (1))
A82: Průřez redukovaný účinnou hloubkou zuhelnatění
A83: bfi = | B83: =Vstupy!B20-Dat!L25*B80 -> 80.05855519 | C83: mm
A84: hfi = | B84: =Vstupy!B21-Dat!L23*B80 -> 250.0292776 | C84: mm
A85: Wfi = | B85: =10^(-9)*(1/6)*B83*B84^2 -> 0.0008341386215 | C85: m3
A87: Modifikační součinitel (pevnostní) pro požár
A88: kmod,fi | B88: 1 | D88: (1995-1-2_4.2.2 (5))
A90: Návrhová hodnota pevnosti materiálu
A91: fm,d,fi = | B91: =B88*B61/B64 -> 36.8 | C91: MPa | D91: (1995-1-2_2.3 (1)P)
A93: Napětí od působícího momentového zatížení v krajních vláknech
A94: σm,d,fi = | B94: =0.001*B47/B85 -> 28.62222104 | C94: MPa
A96: Součinitel redukce pevnosti v ohybu v důsledku příčné a torzní nestability
A97: kcrit,fi = | B97: =IF(Vstupy!D41=Dat!Q5,1,IF(Vstupy!D41=Dat!Q6,Dat!R64,"Chyba")) -> 1 | C97: (1995-1-1_6.3.3 (5))
A100: Ověření zda navržený průřez vyhoví na ohyb při požáru
B101: σm,d,fi < kcrit * fm,d,fi | F101: (1995-1-1_6.3.3 (3))
C102: 0 < kcrit * fm,d,fi - σm,d,fi
B103: 0 | C103: =IF(-0.001<D103,"<",">") -> < | D103: =B97*B91-0.001*B47/B85 -> 8.177778963
C104: =IF(C103="<","Vyhovuje","NEVYHOVUJE") -> Vyhovuje
A106: Požární odolnost
B107: =IF(tpozar<150,"R","je větší než R") -> R | C107: =IF(tpozar<5,0,IF(tpozar<10,5,IF(tpozar<15,10,IF(tpozar<20,15,IF(tpozar<25,20,IF(tpozar<30,25,IF(tpozar<45,30,IF(tpozar<60,45,IF(tpozar<90,60,IF(tpozar<120,90,IF(tpozar<150,120,120))))))))))) -> 60

Sheet N_Vys (hidden)
A1: =CONCATENATE("Výsledek - Požární odolnost ",Dat!H13," nosníku") -> Výsledek - Požární odolnost dvoupolového nosníku
A3: =CONCATENATE(Dat!G13," nosník o průřezu ",Vstupy!B20, " x ",Vstupy!B21," mm (b x h) při zadaných vlastnostech a zadaném") -> Dvoupolový nosník o průřezu 180 x 300 mm (b x h) při zadaných vlastnostech a zadaném
A4: =CONCATENATE("zatížení vydrží vzdorovat normovému požáru ",ROUND(tpozar,1)," minut, aniž by došlo ke kolapsu konstrukce.") -> zatížení vydrží vzdorovat normovému požáru 64.5 minut, aniž by došlo ke kolapsu konstrukce.
A6: Požární odolnost je tedy | D6: =CONCATENATE((IF(tpozar<150,"R ","větší než R ")),N_Vyp!C107,".") -> R 60.

Sheet S_Zat (hidden)
A1: Sloup - Zadání zatížení
A3: Kategorie stavby:
A4: H - střechy | D4: ψ0 = | E4: =VLOOKUP(A4,ZatData!A1:D8,2) -> 0 | F4: ψ1 = | G4: =VLOOKUP(A4,ZatData!A1:D8,3) -> 0 | H4: ψ2 = | I4: =VLOOKUP(A4,ZatData!A1:D8,4) -> 0
A6: Základní kombinace zatížení pro návrhové situace (MSÚ - STR/GEO)
B7: 6.10 | C7: =IF(OR(Dat!F4=Dat!F2,Dat!F4=Dat!F3),"(Vyberte méně příznivou variantu z 6.10a a 6.10b)","") -> 
A9: Velikost zatížení
B10: Stálé zatížení | G10: Gk [kN] | H10: γG [-] | I10: ξ | J10: Gd [kN]
B11: Vlastní tíha g0 | G11: =10*(Vstupy!B11*(Vstupy!B20*Vstupy!B21*10^(-6)))/1000 -> 0.2214 | H11: =1.35 -> 1.35 | I11: =Dat!G4 -> 1 | J11: =G11*H11*I11 -> 0.29889
B12: Ostatní stálé g-g0 | G12: 50 | H12: =1.35 -> 1.35 | I12: =I11 -> 1 | J12: =G12*H12*I12 -> 67.5
G13: =SUM(G11:G12) -> 50.2214 | J13: =SUM(J11:J12) -> 67.79889
B15: Proměnné zatížení | G15: Qk [kN] | H15: γQ | I15: ψ | J15: Qd [kN]
A16: Q1 | B16: Užitné | G16: 25 | H16: 1.5 | I16: =IF(AND(OR($B$7=Dat!$F$3,$B$7=Dat!$F$1),$E$25=A16),1,$E$4) -> 1 | J16: =G16*H16*I16 -> 37.5
A17: Q2 | B17: Sníh | C17: H < 1000 m n.m. | G17: 10 | H17: 1.5 | I17: =IF(AND(OR($B$7=Dat!$F$3,$B$7=Dat!$F$1),$E$25=A17),1,Dat!I4) -> 0.5 | J17: =H17*G17*I17 -> 7.5
A18: Q3 | B18: Vítr | G18: 0 | H18: 1.5 | I18: =IF(AND(OR($B$7=Dat!$F$3,$B$7=Dat!$F$1),$E$25=A18),1,0.6) -> 0.6 | J18: =H18*G18*I18 -> 0
A19: Q4 | B19: Proměnné 4 | G19: 0 | H19: 1.5 | I19: =IF(AND(OR($B$7=Dat!$F$3,$B$7=Dat!$F$1),$E$25=A19),1,$E$4) -> 0 | J19: =H19*G19*I19 -> 0
G21: =SUM(G16:G20) -> 35 | J21: =SUM(J16:J20) -> 45
A23: Celkem | J23: =J21+J13 -> 112.79889
A25: Hlavní proměnné zatížení: | E25: Q1 | F25: =VLOOKUP(E25,A16:G19,7) -> 25 | G25: kN
A27: Excentricita působícího zatížení ve směru y: | F27: ey = | G27: =Vstupy!B20/5 -> 36 | H27: mm
D28: → Moment | F28: Mz,d = | G28: =J23*G27/1000 -> 4.06076004 | H28: kNm
A30: Excentricita působícího zatížení ve směru z: | F30: ez = | G30: =Vstupy!B21/3 -> 100 | H30: mm
D31: → Moment | F31: My,d = | G31: =J23*G30/1000 -> 11.279889 | H31: kNm

Sheet S_Vyp (hidden)
A1: Výpočet požární odolnosti sloupu
A3: Ověření únosnosti při pokojové teplotě
A5: Šířka a výška průřezu
A6: b | B6: =Vstupy!B20 -> 180 | C6: mm
A7: h | B7: =Vstupy!B21 -> 300 | C7: mm
A9: Velikost osové síly | D9: Plocha průřezu | G9: Návrhové napětí v tlaku
A10: NEd | B10: =S_Zat!J23 -> 112.79889 | C10: kN | D10: A | E10: =Vstupy!B20*Vstupy!B21/10^6 -> 0.054 | F10: m2 | G10: σc,0,d | H10: =0.001*B10/E10 -> 2.088868333 | I10: MPa
A12: Velikosti momentů | D12: Průřezové moduly | G12: Návrhová napětí v ohybu
A13: My,Ed | B13: =S_Zat!G31 -> 11.279889 | C13: kNm | D13: Wy | E13: =(B6*B7^2/6)/10^9 -> 0.0027 | F13: m3 | G13: σm,y,d | H13: =0.001*B13/E13 -> 4.177736667 | I13: MPa
A14: Mz,Ed | B14: =S_Zat!G28 -> 4.06076004 | C14: kNm | D14: Wz | E14: =(B7*B6^2/6)/10^9 -> 0.00162 | F14: m3 | G14: σm,z,d | H14: =0.001*B14/E14 -> 2.506642 | I14: MPa
A16: Dílčí součinitel pro vlastnosti materiálu v základní kombinaci
A17: γM = | B17: =VLOOKUP(Vstupy!A4,Dat!A3:B4,2) -> 1.25 | D17: (1995-1-1_2.4.1)
A19: Návrhová hodnota pevnosti v tlaku rovnoběžně s vlákny
A20: fc,0,d = | B20: =Vstupy!C16*Vstupy!G11/B17 -> 16.96 | C20: MPa | D20: (1995-1-1_2.4.1 (1))
A22: Návrhová hodnota pevnosti v ohybu
A23: fm,d = | B23: =Vstupy!C16*Vstupy!B8/B17 -> 20.48 | C23: MPa | D23: (1995-1-1_2.4.1 (1))
A25: Součinitel redistribuce napětí a vlivu nehomogenity materiálu v průřezu
A26: km = | B26: 0.7 | C26: (obdélník) | D26: (1995-1-1_6.1.6 (2))
A28: Poměrné štíhlostní poměry | F28: Součinitele vzpěrnosti
A29: λrel,y = | B29: =Dat!AH17 -> 0.5387685023 | C29: (1995-1-1_6.3.2 (1)) | F29: kc,y = | G29: =Dat!AF27 -> 0.9678614228 | H29: (1995-1-1_6.3.2 (3))
A30: λrel,z = | B30: =Dat!AH18 -> 0.8979475039 | C30: (1995-1-1_6.3.2 (1)) | F30: kc,z = | G30: =Dat!AF28 -> 0.8427575823 | H30: (1995-1-1_6.3.2 (3))
A32: Posouzení průřezu na kombinaci ohybu a osového tlaku | K32: λy,z > 0.3 ? | L32: =IF(AND(B29<0.3,B30<0.3),0,1) -> 1
D34: (1995-1-1_6.2.4 (1)P)
C36: =(H10/B20)^2+(H13/B23)+B26*(H14/B23) -> 0.3048367594 | D36: =IF(C36<1,"< 1","> 1") -> < 1 | E36: =IF(C36<1,"Vyhovuje","NEVYHOVUJE") -> Vyhovuje | G36: =L39 -> Poměrná štíhlost alespoň v
G37: =M39 -> jednom směru je větší než 0.3 | K37: 0 | L37: Poměrná štíhlost v obou | M37: směrech je menší než 0.3 => | N37: Pro posouzení využíváme | O37: tyto vztahy.
D38: (1995-1-1_6.2.4 (1)P) | G38: =N39 -> => Pro posouzení nevyužíváme | K38: 1 | L38: Poměrná štíhlost alespoň v | M38: jednom směru je větší než 0.3 | N38: => Pro posouzení nevyužíváme | O38: tyto vztahy.
G39: =O39 -> tyto vztahy. | K39: =L32 -> 1 | L39: =VLOOKUP(K39,K37:R38,2) -> Poměrná štíhlost alespoň v | M39: =VLOOKUP(K39,K37:R38,3) -> jednom směru je větší než 0.3 | N39: =VLOOKUP(K39,K37:R38,4) -> => Pro posouzení nevyužíváme | O39: =VLOOKUP(K39,K37:R38,5) -> tyto vztahy.
C40: =(H10/B20)^2+B26*(H13/B23)+(H14/B23) -> 0.2803578336 | D40: =IF(C40<1,"< 1","> 1") -> < 1 | E40: =IF(C40<1,"Vyhovuje","NEVYHOVUJE") -> Vyhovuje
K41: Posouzení
A42: Posouzení stability | K42: 0 | L42: =podmPok1 -> 0.3048367594 | M42: =podmPok2 -> 0.2803578336
D43: (1995-1-1_6.3.2 (3)) | K43: 1 | L43: =podmPok3 -> 0.416921463 | M43: =podmPok4 -> 0.4113328875
K44: =L32 -> 1 | L44: =VLOOKUP(K44,K42:M43,2) -> 0.416921463 | M44: =VLOOKUP(K44,K42:M43,3) -> 0.4113328875
C45: =(H10/(G29*B20))+(H13/B23)+B26*(H14/B23) -> 0.416921463 | D45: =IF(C45<1,"< 1","> 1") -> < 1 | E45: =IF(C45<1,"Vyhovuje","NEVYHOVUJE") -> Vyhovuje | G45: =L48 -> Poměrná štíhlost alespoň v
G46: =M48 -> jednom směru je větší než 0.3 | K46: 0 | L46: Poměrná štíhlost v obou | M46: směrech je menší než 0.3 | N46: => Pro posouzení nevyužíváme | O46: tyto vztahy.
D47: (1995-1-1_6.3.2 (3)) | G47: =N48 -> => Pro posouzení využíváme | K47: 1 | L47: Poměrná štíhlost alespoň v | M47: jednom směru je větší než 0.3 | N47: => Pro posouzení využíváme | O47: tyto vztahy.
G48: =O48 -> tyto vztahy. | K48: =L32 -> 1 | L48: =VLOOKUP(K48,K46:R47,2) -> Poměrná štíhlost alespoň v | M48: =VLOOKUP(K48,K46:R47,3) -> jednom směru je větší než 0.3 | N48: =VLOOKUP(K48,K46:R47,4) -> => Pro posouzení využíváme | O48: =VLOOKUP(K48,K46:R47,5) -> tyto vztahy.
C49: =(H10/(G30*B20))+B26*(H13/B23)+(H14/B23) -> 0.4113328875 | D49: =IF(C49<1,"< 1","> 1") -> < 1 | E49: =IF(C49<1,"Vyhovuje","NEVYHOVUJE") -> Vyhovuje
A51: Účinek požáru - Výpočet velikosti ohybového momentu
A53: Charakteristická hodnota stálého zatížení
A54: Gk = | B54: =S_Zat!G13 -> 50.2214 | C54: kN
A56: Dílčí součinitel pro stálá zatížení
A57: γG = | B57: =S_Zat!H11 -> 1.35 | D57: (1990_A1.3.1 (3))
A59: Dílčí součinitele zatížení pro mezní stavy únosnosti v mimořádných návrhových situacích
A60: γGA = | B60: 1 | D60: (1990_A1.3.2 (1))
A62: Charakteristická hodnota hlavního proměnného zatížení
A63: Qk,1 = | B63: =S_Zat!F25 -> 25 | C63: kN
A65: Dílčí součinitel pro hlavní proměnné zatížení
A66: γQ,1 = | B66: =S_Zat!H16 -> 1.5 | D66: (1990_A1.3.1 (3))
A68: Redukční součinitel pro kombinaci zatížení (6.10) v ČSN EN 1990
A69: ηfi = | B69: =(B60*B54+Dat!N3*B63)/(B57*B54+B66*B63) -> 0.4769413999 | D69: (1995-1-2_2.4.2 (3))
A70: (Jako zjednodušení je doporučena hodnota 0.7 pro užitné kategorie E a 0.6 pro ostatní)
A72: Účinek zatížení (moment v polovině rozpětí)
A73: Nd,fi = | B73: =B10*B69 -> 53.7984605 | C73: kN | D73: (1995-1-2_2.4.2 (2))
A74: My,d,fi = | B74: =B13*$B$69 -> 5.37984605 | C74: kNm | D74: (1995-1-2_2.4.2 (2))
A75: Mz,d,fi = | B75: =B14*$B$69 -> 1.936744578 | C75: kNm | D75: (1995-1-2_2.4.2 (2))
A77: Účinek požáru - Posouzení - obecné informace
A79: Trvání požáru | F79: Počátek zuhelnatění
A80: t = | B80: 71.99608424 | C80: min | F80: tch = | G80: =Dat!J71 -> 20.95131204 | H80: min
A82: Převodní součinitel na 20% kvantil
A83: kfi | B83: =VLOOKUP(Vstupy!A4,Dat!A3:C4,3) -> 1.15 | D83: (1995-1-2_2.3 (3))
A85: 20% kvantil pevnosti
A86: fm,20 = | B86: =Vstupy!B8*B83 -> 36.8 | C86: MPa | D86: (1995-1-2_2.3 (3))
A87: fc,0,20 = | B87: =Vstupy!G11*B83 -> 30.475 | C87: MPa | D87: (1995-1-2_2.3 (3))
A89: Dílčí součinitel spolehlivosti dřeva při požáru
A90: γm,fi = | B90: =1 -> 1 | D90: (1995-1-2_2.3 (1-P2))
A92: Nominální návrhová rychlost zuhelnatění při vystavení účinkům normového požáru
A93: βn | B93: =Dat!N60 -> 0.7 | C93: mm/min | D93: (1995-1-2_3.4.2 (5))
A95: Nominální návrhová hloubka zuhelnatění
A96: dchar,n | B96: =Dat!I83 -> 42.97072241 | C96: mm | D96: (1995-1-2_3.4.2/3.4.3)
A99: Účinek požáru - Posouzení - Metoda účinného průřezu
A101: Součinitele pro redukci průřezu
A102: d0 = | B102: 7 | C102: mm | D102: (1995-1-2_4.2.2 (1))
A103: k0 = | B103: =IF(dotazOchr=ochr1,(IF(G80<20,(IF(B80>20,1,(B80/20))),(IF(G80<B80,1,(B80/G80))))),IF(dotazOchr=ochr0,(IF(B80>20,1,(B80/20))),"Chyba")) -> 1 | D103: (1995-1-2_4.2.2 (2,3))
A105: Účinná hloubka zuhelnatění
A106: def = | B106: =B96+B103*B102 -> 49.97072241 | C106: mm | D106: (1995-1-2_4.2.2 (1))
A108: Průřez redukovaný účinnou hloubkou zuhelnatění
A109: bfi = | B109: =Vstupy!B20-Dat!L25*B106 -> 80.05855519 | C109: mm
A110: hfi = | B110: =Vstupy!B21-Dat!L23*B106 -> 250.0292776 | C110: mm
A111: Wfi = | B111: =10^(-9)*(1/6)*B109*B110^2 -> 0.0008341386215 | C111: m3
A113: Modifikační součinitel (pevnostní) pro požár
A114: kmod,fi | B114: 1 | D114: (1995-1-2_4.2.2 (5))
A116: Návrhové hodnoty pevností materiálu
A117: fc,0,d,fi = | B117: =$B$114*B87/$B$90 -> 30.475 | C117: MPa | D117: (1995-1-2_2.3 (1)P)
A118: fm,d,fi = | B118: =$B$114*B86/$B$90 -> 36.8 | C118: MPa | D118: (1995-1-2_2.3 (1)P)
A120: Plocha průřezu | F120: Průřezové moduly
A121: A | B121: =B109*B110/10^6 -> 0.02001698272 | C121: m2 | F121: Wy | G121: =(B109*B110^2/6)/10^9 -> 0.0008341386215 | H121: m3
F122: Wz | G122: =(B110*B109^2/6)/10^9 -> 0.0002670884526 | H122: m3
A124: Napětí od působícího normálového zatížení
A125: σc,0,d,fi | B125: =0.001*B73/B121 -> 2.687640852 | C125: MPa
A127: Napětí od působících momentových zatížení v krajních vláknech
A128: σm,y,d,fi | B128: =0.001*B74/G121 -> 6.449582733 | C128: MPa
A129: σm,z,d,fi | B129: =0.001*B75/G122 -> 7.251322769 | C129: MPa
A131: Součinitel redistribuce napětí a vlivu nehomogenity materiálu v průřezu
A132: km = | B132: 0.7 | C132: (obdélník) | D132: (1995-1-1_6.1.6 (2))
A134: Poměrné štíhlostní poměry | F134: Součinitele vzpěrnosti
A135: λrel,y = | B135: =Dat!AH40 -> 0.6464464972 | C135: (1995-1-1_6.3.2 (1)) | F135: kc,y,fi | G135: =Dat!AF50 -> 0.9458164719 | H135: (1995-1-1_6.3.2 (3))
A136: λrel,z = | B136: =Dat!AH41 -> 2.018904167 | C136: (1995-1-1_6.3.2 (1)) | F136: kc,z,fi | G136: =Dat!AF51 -> 0.2325606708 | H136: (1995-1-1_6.3.2 (3))
A138: Posouzení průřezu na kombinaci ohybu a osového tlaku za požáru | L138: λy,z > 0.3 ? | M138: =IF(AND(B135<0.3,B136<0.3),0,1) -> 1
A139: =M145 -> Poměrná štíhlost alespoň v jednom směru je větší než 0.3 => Pro posouzení NEvyužíváme
A140: =N145 -> tyto vztahy.
E142: (1995-1-1_6.2.4 (1)P)
L143: 0 | M143: Poměrná štíhlost v obou směrech je menší než 0.3 => Pro posouzení využíváme | N143: tyto vztahy.
C144: Kombin. M a N, vzorec (6.19): | D144: =(B125/B117)^2+(B128/B118)+B132*(B129/B118) -> 0.3209709394 | E144: =IF(D144<1.001,"< 1","> 1") -> < 1 | F144: =IF(D144<1.001,"Vyhovuje","NEVYHOVUJE") -> Vyhovuje | L144: 1 | M144: Poměrná štíhlost alespoň v jednom směru je větší než 0.3 => Pro posouzení NEvyužíváme | N144: tyto vztahy.
L145: =M138 -> 1 | M145: =VLOOKUP(L145,L143:S144,2) -> Poměrná štíhlost alespoň v jednom směru je větší než 0.3 => Pro posouzení NEvyužíváme | N145: =VLOOKUP(L145,L143:S144,3) -> tyto vztahy.
E146: (1995-1-1_6.2.4 (1)P)
K147: Typ posudku | M147: Podm1 | N147: Podm2
C148: Kombin. M a N, vzorec (6.20): | D148: =(B125/B117)^2+B132*(B128/B118)+(B129/B118) -> 0.3275068636 | E148: =IF(D148<1.001,"< 1","> 1") -> < 1 | F148: =IF(D148<1.001,"Vyhovuje","NEVYHOVUJE") -> Vyhovuje | K148: 0 | L148: M+N | M148: =D144 -> 0.3209709394 | N148: =D148 -> 0.3275068636
K149: 1 | L149: Stab | M149: =D155 -> 0.4064371169 | N149: =D159 -> 0.698949107
A150: Posouzení stability za požáru | K150: =M138 -> 1 | L150: =VLOOKUP(K150,K148:N149,2) -> Stab | M150: =VLOOKUP(K150,K148:N149,3) -> 0.4064371169 | N150: =VLOOKUP(K150,K148:N149,4) -> 0.698949107
A151: =M154 -> Poměrná štíhlost alespoň v jednom směru je větší než 0.3 => Pro posouzení využíváme
A152: =N154 -> tyto vztahy. | L152: 0 | M152: Poměrná štíhlost v obou směrech je menší než 0.3 => Pro posouzení NEvyužíváme | N152: tyto vztahy.
E153: (1995-1-1_6.3.2 (3)) | L153: 1 | M153: Poměrná štíhlost alespoň v jednom směru je větší než 0.3 => Pro posouzení využíváme | N153: tyto vztahy.
L154: =M138 -> 1 | M154: =VLOOKUP(L154,L152:Q153,2) -> Poměrná štíhlost alespoň v jednom směru je větší než 0.3 => Pro posouzení využíváme | N154: =VLOOKUP(L154,L152:Q153,3) -> tyto vztahy.
C155: Stabilita, vzorec (6.23): | D155: =(B125/(G135*B117))+(B128/B118)+B132*(B129/B118) -> 0.4064371169 | E155: =IF(D155<1.001,"< 1","> 1") -> < 1 | F155: =IF(D155<1.001,"Vyhovuje","NEVYHOVUJE") -> Vyhovuje
E157: (1995-1-1_6.3.2 (3))
C159: Stabilita, vzorec (6.24): | D159: =(B125/(G136*B117))+B132*(B128/B118)+(B129/B118) -> 0.698949107 | E159: =IF(D159<1.001,"< 1","> 1") -> < 1 | F159: =IF(D159<1.001,"Vyhovuje","NEVYHOVUJE") -> Vyhovuje
A161: Rozhodující podmínka
A162: =IF(D162=D144,C144,IF(D162=D148,C148,IF(D162=D155,C155,IF(D162=D159,C159,"Chyba")))) -> Stabilita, vzorec (6.24): | D162: =MAX(M150:N150) -> 0.698949107 | E162: =IF(D162<1.001,"< 1","> 1") -> < 1
D163: =D162-1 -> -0.301050893 | E163: =IF(D163<1,"< 0","> 0") -> < 0 | F163: =IF(D163<0.001,"Vyhovuje","NEVYHOVUJE") -> Vyhovuje
A165: Požární odolnost
B166: =IF(tpozar<150,"R","je větší než R") -> R | C166: =IF(tpozarSl<5,0,IF(tpozarSl<10,5,IF(tpozarSl<15,10,IF(tpozarSl<20,15,IF(tpozarSl<25,20,IF(tpozarSl<30,25,IF(tpozarSl<45,30,IF(tpozarSl<60,45,IF(tpozarSl<90,60,IF(tpozarSl<120,90,IF(tpozarSl<150,120,120))))))))))) -> 60

Sheet S_Vys (hidden)
A1: Výsledek - Požární odolnost sloupu
A3: =CONCATENATE("Sloup o průřezu ",Vstupy!B20, " x ",Vstupy!B21," mm (b x h) při zadaných vlastnostech a zadaném zatížení vydrží") -> Sloup o průřezu 180 x 300 mm (b x h) při zadaných vlastnostech a zadaném zatížení vydrží
A4: =CONCATENATE("vzdorovat normovému požáru ",ROUND(tpozarSl,1)," minut, aniž by došlo ke kolapsu konstrukce.") -> vzdorovat normovému požáru 72 minut, aniž by došlo ke kolapsu konstrukce.
A6: Požární odolnost je tedy | D6: =CONCATENATE((IF(tpozarSl<150,"R ","větší než R ")),S_Vyp!C166,".") -> R 60.

Sheet Dat (hidden)
A1: Materiálový součinitel | C1: Převod na 20% kvantil | F1: 6.10 | G1: 1 | L1: ψ1 | M1: ψ2 | N1: Zvolené ψ
A2: Tabulka 2.3 (1995-1-1_2.4.1) | C2: Tabulka 2.1 (1995-1-2_2.3 (3)) | F2: 6.10a | G2: 1 | H2: H < 1000 m n.m. | I2: 0.5 | K2: Nosník | L2: =N_Zat!G4 -> 0.9 | M2: =N_Zat!I4 -> 0.8 | N2: =IF(Vstupy!C24=Dat!C25,Dat!L2,Dat!M2) -> 0.8
A3: 1) Rostlé dřevo | B3: 1.3 | C3: 1.25 | D3: Rostlé dřevo | F3: 6.10b | G3: 0.85 | H3: H > 1000 m n.m. | I3: 0.7 | K3: Sloup | L3: =S_Zat!G4 -> 0 | M3: =S_Zat!I4 -> 0 | N3: =IF(Vstupy!C24=Dat!C25,Dat!L3,Dat!M3) -> 0 | Q3: Nosník - kcrit za běžné teploty | AA3: Sloup - kc,y & kc,z za běžné teploty
A4: 2) Lepené lamelové dřevo | B4: 1.25 | C4: 1.15 | D4: LLD | F4: =I13 -> 6.10 | G4: =VLOOKUP(F4,F1:G3,2) -> 1 | H4: =J13 -> H < 1000 m n.m. | I4: =VLOOKUP(H4,H2:I3,2) -> 0.5 | Q4: Součinitel redukce pevnosti v ohybu v důsledku příčné a torzní nestability | AA4: Sloup je zajištěn proti vybočení jinde než v podporách: | AG4: =Vstupy!D41 -> ANO
A5: =Vstupy!A4 -> 2) Lepené lamelové dřevo | Q5: ANO | AA5: Lcr,uživ = | AB5: =Vstupy!D42 -> 3 | AC5: m
Q6: NE | AA6: H = | AB6: =Vstupy!G21 -> 6 | AC6: m
Q7: =Vstupy!D41 -> ANO | R7: žlutá? | AA7: Lef = | AB7: =IF(AG4=Q5,AB5,AB6) -> 3 | AC7: m
Q8: =IF(Q7=Q5,1,0) -> 1 | R8: =IF(AND(Q8=0,D29=0),1,0) -> 0
A9: Konstrukce | Q9: 1) Stanovení účinné délky | AA9: 1) Geometrie
A10: Nosník 1 pole | B10: 1 | C10: Délka nosníku: | D10: ="" ->  | E10: =B81 -> 45.220005 | F10: Moment v polovině rozpětí | G10: Jednopolový | H10: jednopolového | I10: =N_Zat!B7 -> 6.10 | J10: =N_Zat!C17 -> H < 1000 m n.m. | K10: Zajištění proti vybočení a zabránění torznímu natočení | L10: Tlačený okraj nosníku je po celé délce zajištěn proti vybočení a je zabráněno torznímu | M10: natočení v podpěrách: | Q10: (dle ČSN EN 1995-1-1_6.3.3 Nosníky vystavené kombinaci ohybu a tlaku) | AA10: b | AB10: =Vstupy!B20/1000 -> 0.18 | AC10: m | AE10: A | AF10: =AB10*AB11 -> 0.054 | AG10: m2
A11: Nosník 2 pole | B11: 2 | C11: Délka pravého pole: | D11: Délka levého pole: | E11: =ABS(B88) -> 35.171115 | F11: Moment nad střední podporou | G11: Dvoupolový | H11: dvoupolového | I11: =I10 -> 6.10 | J11: =J10 -> H < 1000 m n.m. | K11: Zajištění proti vybočení a zabránění torznímu natočení | L11: Tlačený okraj nosníku je po celé délce zajištěn proti vybočení a je zabráněno torznímu | M11: natočení v podpěrách: | AA11: h | AB11: =Vstupy!B21/1000 -> 0.3 | AC11: m
A12: Sloup | B12: 3 | C12: Výška sloupu: | D12: ="" ->  | I12: =S_Zat!B7 -> 6.10 | J12: =S_Zat!C17 -> H < 1000 m n.m. | K12: Zajištění proti vybočení | L12: Sloup je zajištěn proti vybočení jinde než v podporách: | M12: ="" ->  | Q12: Rozpětí | U12: Zatížení působí na tlačeném okraji nosníku
B13: 2 | C13: =VLOOKUP(typKce,B10:C12,2) -> Délka pravého pole: | D13: =VLOOKUP(typKce,B10:D12,3) -> Délka levého pole: | E13: =VLOOKUP(typKce,B10:E12,4) -> 35.171115 | F13: =VLOOKUP(typKce,B10:F12,5) -> Moment nad střední podporou | G13: =VLOOKUP(typKce,B10:G12,6) -> Dvoupolový | H13: =VLOOKUP(typKce,B10:H12,7) -> dvoupolového | I13: =VLOOKUP(typKce,B10:I12,8) -> 6.10 | J13: =VLOOKUP(typKce,B10:J12,9) -> H < 1000 m n.m. | K13: =VLOOKUP(typKce,B10:K12,10) -> Zajištění proti vybočení a zabránění torznímu natočení | L13: =VLOOKUP(typKce,B10:L12,11) -> Tlačený okraj nosníku je po celé délce zajištěn proti vybočení a je zabráněno torznímu | M13: =VLOOKUP(typKce,B10:M12,12) -> natočení v podpěrách: | Q13: l | R13: =Vstupy!G21 -> 6 | S13: m | V13: ANO | AA13: 2) Štíhlostní poměry
AA14: Iy | AB14: =AB10*AB11^3/12 -> 0.000405 | AC14: m4 | AD14: iy | AE14: =SQRT(AB14/$AF$10) -> 0.08660254038 | AF14: m | AG14: λy | AH14: =$AB$7/AE14 -> 34.64101615
Q15: Poměr mezi účinnou délkou a rozpětím (pro prostě podepřený, spojité zatížení) | AA15: Iz | AB15: =AB11*AB10^3/12 -> 0.0001458 | AC15: m4 | AD15: iz | AE15: =SQRT(AB15/$AF$10) -> 0.05196152423 | AF15: m | AG15: λz | AH15: =$AB$7/AE15 -> 57.73502692
Q16: lef/l | R16: 0.9 | S16: (tab 6.1)
A17: Modifikační součinitel pevnosti pro třídy provozu a třídy trvání zatížení: | AA17: Poměrný štíhlostní poměr odpovídající ohybu kolem osy y | AG17: λrel,y | AH17: =(AH14/PI())*SQRT(Vstupy!G11/Vstupy!G8) -> 0.5387685023 | AI17: (6.21)
A18: Klasický materiál? | C18: =IF(OR(A5=A3,A5=A4),1,0) -> 1 | Q18: Účinná délka nosníku závislá na podmínkách uložení a uspořádání | AA18: Poměrný štíhlostní poměr odpovídající ohybu kolem osy z | AG18: λrel,z | AH18: =(AH15/PI())*SQRT(Vstupy!G11/Vstupy!G8) -> 0.8979475039 | AI18: (6.22)
B19: 1) Stálé | C19: 2) Dlouhodobé | D19: 3) Střednědobé | E19: 4) Krátkodobé | F19: 5) Okamžité | Q19: lef | R19: =R16*R13+2*Vstupy!B21*0.001 -> 6 | S19: m
A20: 1 | B20: 0.6 | C20: 0.7 | D20: 0.8 | E20: 0.9 | F20: 1.1 | J20: Vystavené hrany: | AA20: 2) Stanovení součinitelů vzpěrnosti
A21: 2 | B21: 0.6 | C21: 0.7 | D21: 0.8 | E21: 0.9 | F21: 1.1 | J21: (Pozn.: vystavená šířka -> zmenšuje se výška!) | Q21: 2) Stanovení součinitele vzpěrnosti | AA21: (dle ČSN EN 1995-1-1_6.3.2 Sloupy vystavené kombinaci ohybu a tlaku)
A22: 3 | B22: 0.5 | C22: =0.55 -> 0.55 | D22: 0.65 | E22: 0.7 | F22: 0.9 | J22: 1 x šířka | K22: 2 x šířka | L22: =Vstupy!A31 -> 1 x šířka | M22: =IF(AND(L23=1,L25=1),1,0) -> 0 | Q22: (dle ČSN EN 1995-1-1_6.3.2 Sloupy vystavené kombinaci ohybu a tlaku)
G23: =HLOOKUP(Vstupy!C15,B19:F22,(Vstupy!C14+1)) -> 0.8 | J23: 1 | K23: 2 | L23: =HLOOKUP(L22,J22:K23,2) -> 1 | M23: =IF(AND(L23=1,L25=2),1,0) -> 1 | AA23: Součinitel přímosti:
J24: 1 x výška | K24: 2 x výška | L24: =Vstupy!A32 -> 2 x výška | M24: =IF(AND(L23=2,L25=1),1,0) -> 0 | Q24: Poloměr setrvačnosti průřezu k ose z | U24: Štíhlostní poměr | AA24: βc = | AB24: =IF(A5=A3,0.2,0.1) -> 0.1 | AD24: (6.29)
A25: Chráněný | C25: ψ1,1 | J25: 1 | K25: 2 | L25: =HLOOKUP(L24,J24:K25,2) -> 2 | M25: =IF(AND(L23=2,L25=2),1,0) -> 0 | Q25: iz | R25: =SQRT((1/12)*Vstupy!B21*Vstupy!B20^3/(Vstupy!B20*Vstupy!B21)) -> 51.96152423 | S25: mm | U25: λz | V25: =1000*R19/R25 -> 115.4700538
A26: Nechráněný | C26: ψ2,1 | AA26: Součinitele vzpěrnosti
H27: Ochrana: | Q27: Poměrný štíhlostní poměr odpovídající ohybu kolem osy z | AA27: ky = | AB27: =0.5*(1+AB24*(AH17-0.3)+AH17^2) -> 0.6570741747 | AC27: (6.26) | AE27: kc,y = | AF27: =1/(AB27+SQRT(AB27^2-AH17^2)) -> 0.9678614228 | AG27: (6.27)
A28: Jehličnaté | Q28: λrel,z | R28: =(V25/PI())*SQRT(Vstupy!G11/Vstupy!G8) -> 1.795895008 | T28: (6.22) | AA28: kz = | AB28: =0.5*(1+AB24*(AH18-0.3)+AH18^2) -> 0.933052235 | AC28: (6.26) | AE28: kc,z = | AF28: =1/(AB28+SQRT(AB28^2-AH18^2)) -> 0.8427575823 | AG28: (6.28)
A29: Listnaté | C29: Známe fm,k a ρk? | D29: =IF(AND(A5=A3,A31=A28),F45,IF(AND(A5=A3,A31=A29),F57,IF(A5=A4,F72,0))) -> 1 | I29: Počátek zuhelnatění:
C30: Je vybrán materiál: | D30: =IF(AND(A5=A3,A31=A28),1,IF(AND(A5=A3,A31=A29),2,3)) -> 3 | J30: =Ochrana!C5 -> 20 | K30: =Ochrana!G5 -> 10 | L30: tch | Q30: Součinitel přímosti: | AA30: Sloup - kc,y & kc,z za požáru
A31: =Vstupy!F4 -> Jehličnaté | I31: =Ochrana!A4 -> 1) Deska/y na bázi dřeva / dř. obložení | J31: =VLOOKUP(I31,I32:J38,2) -> celková tl. vrstev: | K31: =VLOOKUP(I31,I32:K38,3) -> 0 | L31: =VLOOKUP(I31,I32:L38,4) -> 20.95131204 | M31: =VLOOKUP(I31,I32:M37,5) ->  | Q31: βc = | R31: =IF(A5=A3,0.2,0.1) -> 0.1 | T31: (6.29)
B32: fm,k | C32: ρk | D32: fc,0,k | E32: E0.05 | I32: 1) Deska/y na bázi dřeva / dř. obložení | J32: celková tl. vrstev: | L32: =J30/P76 -> 20.95131204 | M32: ="" ->  | AA32: 1) Geometrie
A33: C14 | B33: 14 | C33: 290 | D33: 16 | E33: 4700 | H33: =IF(OR(I31=I32,I31=I33,I31=I34,I31=I37),1,0) -> 1 | I33: 2) Jedna vrstva SDK desky typu A,F,H (< 2 mm) | J33: tloušťka desky: | L33: =2.8*J30-14 -> 42 | M33: (spáry/dutiny menší než 2 mm) | N33: ="" ->  | Q33: Součinitel vzpěrnosti | AA33: bfi | AB33: =S_Vyp!B109/1000 -> 0.08005855519 | AC33: m | AE33: Afi | AF33: =AB33*AB34 -> 0.02001698272 | AG33: m2
A34: C16 | B34: 16 | C34: 310 | D34: 17 | E34: 5400 | I34: 3) Jedna vrstva SDK desky typu A,F,H (> 2 mm) | J34: tloušťka desky: | L34: =2.8*J30-23 -> 33 | M34: (spáry/dutiny větší než 2 mm) | N34: ="" ->  | Q34: kz = | R34: =0.5*(1+R31*(R28-0.3)+R28^2) -> 2.18741419 | T34: (6.28) | AA34: hfi | AB34: =S_Vyp!B110/1000 -> 0.2500292776 | AC34: m
A35: C18 | B35: 18 | C35: 320 | D35: 18 | E35: 6000 | I35: 4) Dvě vrstvy SDK desky typu A,H | J35: tloušť. vněj. vrstvy: | K35: tloušť. vnitř. vrstvy: | L35: =2.8*(J30+0.5*K30)-14 -> 56 | M35: (rozteč spoj. prostř. ve vnitř. vrstvě < ve vněj. vrstvě) | N35: ="" ->  | Q35: kc,z = | R35: =1/(R34+SQRT(R34^2-R28^2)) -> 0.2910165734 | T35: (6.26)
A36: C20 | B36: 20 | C36: 330 | D36: 19 | E36: 6400 | I36: 5) Dvě vrstvy SDK desky typu F | J36: tloušť. vněj. vrstvy: | K36: tloušť. vnitř. vrstvy: | L36: =2.8*(J30+0.8*K30)-14 -> 64.4 | M36: (rozteč spoj. prostř. ve vnitř. vrstvě < ve vněj. vrstvě) | N36: ="" ->  | Q36: ="" ->  | AA36: 2) Štíhlostní poměry
A37: C22 | B37: 22 | C37: 340 | D37: 20 | E37: 6700 | I37: 6) Jiné | J37: Zadej tch = | L37: =Ochrana!C5 -> 20 | M37: ="" ->  | Q37: 3) Stanovení součinitele redukce pevnosti v ohybu v důsledku příčné a torzní nestability | AA37: Iy,fi | AB37: =AB33*AB34^3/12 -> 0.0001042795385 | AC37: m4 | AD37: iy,fi | AE37: =SQRT(AB37/$AF$33) -> 0.07217723536 | AF37: m | AG37: λy,fi | AH37: =$AB$7/AE37 -> 41.56435176
A38: C24 | B38: 24 | C38: 350 | D38: 21 | E38: 7400 | M38: ="" ->  | Q38: (dle ČSN EN 1995-1-1_6.3.3 Nosníky vystavené kombinaci ohybu a tlaku) | AA38: Iz,fi | AB38: =AB34*AB33^3/12 -> 1.069135781e-05 | AC38: m4 | AD38: iz,fi | AE38: =SQRT(AB38/$AF$33) -> 0.02311091419 | AF38: m | AG38: λz,fi | AH38: =$AB$7/AE38 -> 129.8087983
A39: C27 | B39: 27 | C39: 370 | D39: 22 | E39: 7700
A40: C30 | B40: 30 | C40: 380 | D40: 23 | E40: 8000 | I40: Čas porušení protipožárního obvodového pláště: | Q40: Pro celistvý obdélníkový přůřez ze dřeva jehličnatých dřevin se má σm,crit uvažovat jako | AA40: Poměrný štíhlostní poměr odpovídající ohybu kolem osy y | AG40: λrel,y,fi | AH40: =(AH37/PI())*SQRT(Vstupy!G11/Vstupy!G8) -> 0.6464464972 | AI40: (6.21)
A41: C35 | B41: 35 | C41: 400 | D41: 25 | E41: 8700 | I41: =Ochrana!A9 -> 1) Deska/y na bázi dřeva nebo dř. obložení | Q41: σm,crit = | R41: =0.78*(Vstupy!B20/1000)^2*Vstupy!G8/(0.001*Vstupy!B21*R19) -> 155.844 | S41: MPa | T41: (6.32) | AA41: Poměrný štíhlostní poměr odpovídající ohybu kolem osy z | AG41: λrel,z,fi | AH41: =(AH38/PI())*SQRT(Vstupy!G11/Vstupy!G8) -> 2.018904167 | AI41: (6.22)
A42: C40 | B42: 40 | C42: 420 | D42: 26 | E42: 9400 | I42: 1) Deska/y na bázi dřeva nebo dř. obložení
A43: C45 | B43: 45 | C43: 440 | D43: 27 | E43: 10000 | H43: =IF(OR(I41=I42,I41=I43),1,0) -> 1 | I43: 2) SDK deska typu A, H | Q43: Poměrná šíthlost v ohybu | AA43: 2) Stanovení součinitelů vzpěrnosti
A44: C50 | B44: 50 | C44: 460 | D44: 29 | E44: 10700 | I44: 3) Jiné | Q44: λrel,m | R44: =SQRT(Vstupy!B8/R41) -> 0.453137439 | T44: (6.30) | AA44: (dle ČSN EN 1995-1-1_6.3.2 Sloupy vystavené kombinaci ohybu a tlaku)
A45: Jiné | B45: vyplň | C45: vyplň | D45: vyplň | E45: vyplň | F45: =IF(AND(A5=A3,A31=A28,A47=A45),0,1) -> 1
I46: tch<tf | J46: =IF(Ochrana!B11<=Ochrana!B6,1,0) -> 1 | Q46: Součinitel redukce pevnosti v ohybu v důsledku příčné a torzní nestability | AA46: Součinitel přímosti:
A47: =Vstupy!H4 -> GL 32c | B47: =VLOOKUP(A47,A33:C45,2) -> 50 | C47: =VLOOKUP(A47,A33:C45,3) -> 460 | D47: =VLOOKUP(B47,B33:D45,3) -> 29 | E47: =VLOOKUP(C47,C33:E45,3) -> 10700 | J47: =VLOOKUP(I52,I49:J51,2) -> tloušťka vrstvy: | K47: =Ochrana!C15 -> 22 | Q47: kcrit = | R47: =IF(R44<0.75,1,IF(AND(0.75<R44,R44<1.4),(1.56-0.75*R44),IF(1.4<R44,(1/(R44^2)),"Chyba"))) -> 1 | T47: (6.34) | AA47: βc = | AB47: =AB24 -> 0.1 | AD47: (6.29)
K48: k2
A49: D18 | B49: 18 | C49: 475 | D49: 18 | E49: 8000 | I49: 1) Jediná vrstva desky SDK F | J49: tloušťka vrstvy: | K49: =1-0.018*K47 -> 0.604 | Q49: Nosník - kcrit za požáru | AA49: Součinitele vzpěrnosti
A50: D24 | B50: 24 | C50: 485 | D50: 21 | E50: 8500 | I50: 2) Několik vrstev desek SDK F | J50: tl. vnitřní vrstvy: | K50: =1-0.018*K47 -> 0.604 | Q50: 1) Geometrie | AA50: ky,fi = | AB50: =0.5*(1+AB47*(AH40-0.3)+AH40^2) -> 0.7262688617 | AC50: (6.26) | AE50: kc,y,fi = | AF50: =1/(AB50+SQRT(AB50^2-AH40^2)) -> 0.9458164719 | AG50: (6.27)
A51: D30 | B51: 30 | C51: 530 | D51: 23 | E51: 9200 | I51: 4) Jiné | J51: Zadej souč. k2 = | K51: =K47 -> 22 | Q51: bfi | R51: =N_Vyp!B83 -> 80.05855519 | S51: mm | U51: Afi | V51: =R51*R52 -> 20016.98272 | W51: mm2 | AA51: kz,fi = | AB51: =0.5*(1+AB47*(AH41-0.3)+AH41^2) -> 2.623932227 | AC51: (6.26) | AE51: kc,z,fi = | AF51: =1/(AB51+SQRT(AB51^2-AH41^2)) -> 0.2325606708 | AG51: (6.28)
A52: D35 | B52: 35 | C52: 540 | D52: 25 | E52: 10100 | I52: =Ochrana!A14 -> 1) Jediná vrstva desky SDK F | K52: =VLOOKUP(I52,I49:K51,3) -> 0.604 | Q52: hfi | R52: =N_Vyp!B84 -> 250.0292776 | S52: mm
A53: D40 | B53: 40 | C53: 550 | D53: 26 | E53: 10900
A54: D50 | B54: 50 | C54: 620 | D54: 29 | E54: 11800 | I54: Rychlost zuhelnatění | Q54: 2) Stanovení součinitele redukce pevnosti v ohybu v důsledku příčné a torzní nestability
A55: D60 | B55: 60 | C55: 700 | D55: 32 | E55: 14300 | H55: Buk | Q55: (dle ČSN EN 1995-1-1_6.3.3 Nosníky vystavené kombinaci ohybu a tlaku)
A56: D70 | B56: 70 | C56: 900 | D56: 34 | E56: 16800 | H56: Jiné
A57: Jiné | B57: vyplň | C57: vyplň | D57: vyplň | E57: vyplň | F57: =IF(AND(A5=A3,A31=A29,A59=A57),0,1) -> 1 | H57: =Vstupy!F5 -> Jiné | I57: =IF(A31=A28,H60,IF(H57=H55,H60,H61)) -> 1) Dřevo jehličnatých dřevin a buk | Q57: Pro celistvý obdélníkový přůřez ze dřeva jehličnatých dřevin se má σm,crit uvažovat jako
Q58: σm,crit,fi = | R58: =0.78*(R51/1000)^2*Vstupy!G8/(0.001*R19*R52) -> 36.9905647 | S58: MPa | T58: (6.32)
A59: =Vstupy!H4 -> GL 32c | B59: =VLOOKUP(A59,A49:C57,2) -> 70 | C59: =VLOOKUP(A59,A49:C57,3) -> 900 | D59: =VLOOKUP(B59,B49:D57,3) -> 34 | E59: =VLOOKUP(C59,C49:E57,3) -> 16800 | H59: βn
H60: 1) Dřevo jehličnatých dřevin a buk | I60: =IF(A5=A3,K60,J60) -> 0.7 | J60: 0.7 | K60: 0.8 | N60: =VLOOKUP(I57,Dat!H60:I61,2) -> 0.7 | Q60: Poměrná šíthlost v ohybu
A61: GL 18h | B61: 16.5 | C61: 350 | D61: 16.9 | E61: 7650 | H61: =_xlfn.CONCAT("2) Dřevo listnatých dřevin (ρk=",Vstupy!B11,"kg/m3)") -> 2) Dřevo listnatých dřevin (ρk=410kg/m3) | I61: =IF(Vstupy!B11>L61,M61,IF(AND(J61<Vstupy!B11,Vstupy!B11<L61),(K61+((Vstupy!B11-J61)/(L61-J61))*(M61-K61)),IF(Vstupy!B11<J61,K61,"Chyba"))) -> 0.5875 | J61: 290 | K61: 0.7 | L61: 450 | M61: 0.55 | Q61: λrel,m,fi | R61: =SQRT(Vstupy!B8/R58) -> 0.930099709 | T61: (6.30)
A62: GL 20h | B62: 19.8 | C62: 360 | D62: 20.2 | E62: 8075
A63: GL 22h | B63: 21.4 | C63: 375 | D63: 21.9 | E63: 8500 | Q63: Součinitel redukce pevnosti v ohybu v důsledku příčné a torzní nestability
A64: GL 24c | B64: 24 | C64: 350 | D64: 21 | E64: 9400 | H64: β0 | Q64: kcrit,fi = | R64: =IF(R61<0.75,1,IF(AND(0.75<R61,R61<1.4),(1.56-0.75*R61),IF(1.4<R61,(1/(R61^2)),"Chyba"))) -> 0.8624252183 | T64: (6.34)
A65: GL 24h | B65: 24 | C65: 380 | D65: 24 | E65: 9400 | H65: 1) Dřevo jehličnatých dřevin a buk | I65: =IF(A5=A3,K65,J65) -> 0.65 | J65: 0.65 | K65: 0.65 | N65: =VLOOKUP(I57,Dat!H65:I66,2) -> 0.65
A66: GL 28c | B66: 28 | C66: 380 | D66: 24 | E66: 10200 | H66: =_xlfn.CONCAT("2) Dřevo listnatých dřevin (ρk=",Vstupy!B11,"kg/m3)") -> 2) Dřevo listnatých dřevin (ρk=410kg/m3) | I66: =IF(Vstupy!B11>L66,M66,IF(AND(J66<Vstupy!B11,Vstupy!B11<L66),(K66+((Vstupy!B11-J66)/(L66-J66))*(M66-K66)),IF(Vstupy!B11<J66,K66,"Chyba"))) -> 0.5375 | J66: 290 | K66: 0.65 | L66: 450 | M66: 0.5
A67: GL 28h | B67: 28 | C67: 410 | D67: 26.5 | E67: 10200
A68: GL 32c | B68: 32 | C68: 410 | D68: 26.5 | E68: 11100
A69: GL 32h | B69: 32 | C69: 430 | D69: 29 | E69: 11100 | H69: Doba trvání požáru: t = | J69: =IF(typKce=B12,tpozarSl,tpozar) -> 64.48091547 | K69: min | M69: k3 = | N69: 2 | Q69: ="" -> 
A70: GL 36c | B70: 36 | C70: 430 | D70: 29 | E70: 11900 | H70: Čas porušení: tf = | J70: =Ochrana!B11 -> 20.95131204 | K70: min
A71: GL 36h | B71: 36 | C71: 450 | D71: 31 | E71: 11900 | H71: Počátek zuhelnatění: tch = | J71: =Ochrana!B6 -> 20.95131204 | K71: min | M71: β0,p,t dřevěné ochrany
A72: Jiné | B72: vyplň | C72: vyplň | D72: vyplň | E72: vyplň | F72: =IF(AND(A5=A4,A74=A72),0,1) -> 1 | H72: Časové omezení: ta = | J72: =IF(J71=J70,(MIN(2*J70,(25/(N69*N60))+J70)),(((25-(J70-J71)*K52*N60)/(N69*N60))+J70)) -> 38.80845489 | K72: min | M72: Desky na bázi dřeva nebo dřevěné obložení
M73: Sádrokartonové desky typu A, F, H
A74: =Vstupy!H4 -> GL 32c | B74: =VLOOKUP(A74,A61:C72,2) -> 32 | C74: =VLOOKUP(A74,A61:C72,3) -> 410 | D74: =VLOOKUP(A74,A61:D72,4) -> 26.5 | E74: =VLOOKUP(A74,A61:E72,5) -> 11100 | H74: Hloubka zuhelnatění v závislosti na čase
H75: pro tch=tf: | I75: dchar,n | J75: =(MIN(MAX(0,J69-J70),J72-J70))*N69*N60+MAX(0,J69-J72)*N60 -> 42.97072241 | K75: mm | M75: β0 pro dřevo (desky, obložení) = | P75: 0.9
A76: Zvolené | B76: =IF(A5=A3,IF(A31=A28,B47,B59),IF(A5=A4,B74,"vyplň")) -> 32 | C76: =IF(A5=A3,IF(A31=A28,C47,C59),IF(A5=A4,C74,"vyplň")) -> 410 | D76: =IF(A5=A3,IF(A31=A28,D47,D59),IF(A5=A4,D74,"vyplň")) -> 26.5 | E76: =IF(A5=A3,IF(A31=A28,E47,E59),IF(A5=A4,E74,"vyplň")) -> 11100 | H76: pro tch<tf: | I76: dchar,n | J76: =MIN(MAX(0,J69-J71),J70-J71)*K52*N60+MIN(MAX(0,J69-J70),J72-J70)*N69*N60+MAX(0,J69-J72)*N60 -> 42.97072241 | K76: mm | M76: =Vstupy!F32 -> Desky na bázi dřeva nebo dřevěné obložení | O76: β0,p,t= | P76: =P75*O78*O79 -> 0.9545941546
A78: Nosník o 1 poli | H78: Hloubka zuhelnatění | M78: =Ochrana!C5 -> 20 | N78: kh = | O78: =SQRT(20/M78) -> 1
A79: L | B79: =Vstupy!G21 -> 6 | C79: m | H79: chráněný | I79: dchar,n | J79: =IF(J71=J70,J75,J76) -> 42.97072241 | K79: mm | M79: =Vstupy!G33 -> 400 | N79: kp = | O79: =SQRT(450/M79) -> 1.060660172
A80: f | B80: =N_Zat!J23 -> 10.04889 | C80: kN/m | H80: nechráněný | I80: dchar,n | J80: =J69*N60 -> 45.13664083 | K80: mm
A81: Mpole | B81: =B80*B79^2/8 -> 45.220005 | C81: kNm
H82: Hloubka zuhelnatění
A83: Nosník o 2 polích | H83: dchar,n | I83: =IF(dotazOchr=ochr1,Dat!J79,IF(dotazOchr=ochr0,Dat!J80,"Chyba")) -> 42.97072241 | J83: mm
A84: L1 | B84: =Vstupy!G18 -> 4 | C84: m
A85: L2 | B85: =Vstupy!G21 -> 6 | C85: m
A86: f | B86: =N_Zat!J23 -> 10.04889 | C86: kN/m
A88: Mpodp | B88: =-(B86/8)*(B84^2+B85^2-B84*B85) -> -35.171115 | C88: kNm

Sheet ZatData (hidden)
A1: A - obytné plochy | B1: 0.7 | C1: 0.5 | D1: 0.3
A2: B - kancelářské plochy | B2: 0.7 | C2: 0.5 | D2: 0.3
A3: C - shromažďovací plochy | B3: 0.7 | C3: 0.7 | D3: 0.6
A4: D - obchodní plochy | B4: 0.7 | C4: 0.7 | D4: 0.6
A5: E - skladovací plochy | B5: 1 | C5: 0.9 | D5: 0.8
A6: F - dopravní plochy (tíha vozidla < 30 kN) | B6: 0.7 | C6: 0.7 | D6: 0.6
A7: G - dopravní plochy (30 kN < tíha vozidla < 160kN) | B7: 0.7 | C7: 0.5 | D7: 0.3
A8: H - střechy | B8: 0 | C8: 0 | D8: 0
